[Event "Turkey IS Bank Super League 2017"]
[Site "Darica-Kocaeli"]
[Date "2017.08.03"]
[Round "9"]
[White "Tofan, Ibrahim"]
[Black "Topak, Engin"]
[Result "0-1"]
[ECO "E65"]
[WhiteElo "2194"]
[BlackElo "2192"]
[Annotator "NA"]
[PlyCount "131"]
[EventType "team-tourn"]
[EventCountry "TUR"]
[SourceTitle "playchess.com"]
[Source "ChessBase"]
[SourceQuality "1"]
[TimeControl "40/5400+30:1800+30"]

1. c4 {[%emt 0:00:30]} Nf6 {[%emt 0:01:00]} 2. Nc3 {[%emt 0:00:30]} g6 {[%emt 0:01:30]} 3. g3 {[%emt 0:01:30]} Bg7 {[%emt 0:00:30]} 4. Bg2 {[%emt 0:00:30]} O-O {[%emt 0:00:00]} 5. e4 {[%emt 0:00:30]} d6 {[%emt 0:00:00]} 6. Nge2 {[%emt 0:00:30]} c5 {[%emt 0:00:30]} 7. O-O {[%emt 0:02:30]} Nc6 {[%emt 0:00:30]} 8. d4 {[%emt 0:02:30]} cxd4 {[%emt 0:00:30]} 9. Nxd4 {[%emt 0:02:30]} Bd7 {[%emt 0:00:30] E65: King's Indian: Fianchetto: 6...c5 7 0-0 without d5 by White} 10. Nxc6 {[%emt 0:00:30]} Bxc6 {[%emt 0:04:30]} 11. Be3 {[%emt 0:04:30] LiveBook: 33 Games} Nd7 {[%emt 0:05:30]} (11... a5 12. Qe2 Nd7 13. Rfd1 a4 14. Rac1 Qa5 15. Nd5 Bxd5 16. Rxd5 {1-0 (48) Carlsen,M (2881)-Iturrizaga Bonelli,E (2653) Dubai 2014}) 12. Bd4 {[%emt 0:01:30]} Bxd4 {[%emt 0:06:30]} 13. Qxd4 {[%emt 0:00:30] [#]} a5 $146 {[%emt 0:00:00]} ({Find the theoretical novelty and annotate with similar games:} 13... Qb6 14. Qxb6 Nxb6 15. b3 a5 16. f4 Nd7 17. Rfe1 Rfd8 18. Rad1 Kf8 19. h4 h6 20. Rd2 Ke8 {½-½ (20) Kolvick,R-Chiburdanidze,M (2520) Philadelphia 1989}) 14. h4 {[%emt 0:02:30]} Qb6 {[%emt 0:10:00]} 15. Qd2 {[%emt 0:00:30]} Qc5 {[%emt 0:00:30] [%clk 1:06]} ({Black should play} 15... Ne5 $15) 16. Rfc1 {[%emt 0:03:30]} Rac8 {[%emt 0:39:30]} 17. b3 {[%emt 0:14:30]} Rfe8 {[%emt 0:14:48]} 18. Qf4 {[%emt 0:09:30]} Qe5 {[%emt 0:02:07]} 19. Bh3 {[%emt 0:03:30]} Qxf4 {[%emt 0:03:36]} 20. gxf4 {[%emt 0:00:00]} Rcd8 {[%emt 0:02:21]} 21. Bxd7 {[%emt 0:00:00]} Rxd7 {[%emt 0:00:06]} 22. f3 {[%emt 0:19:30]} e6 {[%emt 0:02:11]} 23. Rd1 {[%emt 0:00:30]} f5 {[%emt 0:00:39]} 24. exf5 {[%emt 0:09:30]} gxf5 {[%emt 0:00:50]} 25. Kf2 {[%emt 0:00:30]} Kf7 {[%emt 0:00:30]} 26. Rd3 {[%emt 0:01:16]} Red8 {[%emt 0:02:14]} 27. Rad1 {[%emt 0:01:38]} Kf6 {[%emt 0:00:44]} 28. a4 {[%emt 0:00:46]} b6 {[%emt 0:01:12]} 29. R3d2 {[%emt 0:01:56]} d5 {[%emt 0:01:25]} 30. cxd5 {[%emt 0:00:13]} Bxd5 {[%emt 0:00:00]} 31. Ke3 {[%emt 0:01:37]} Bc6 {[%emt 0:00:42]} 32. Rxd7 {[%emt 0:03:16]} Rxd7 {[%emt 0:00:00]} 33. Rc1 {[%emt 0:01:06]} Rg7 {[%emt 0:01:27]} 34. Kf2 {[%emt 0:01:47]} Rd7 {[%emt 0:00:09]} 35. Ne2 {[%emt 0:00:31]} Bd5 {[%emt 0:00:42]} 36. Nd4 {[%emt 0:00:31]} e5 {[%emt 0:00:33]} 37. Ne2 {[%emt 0:07:45]} exf4 {[%emt 0:00:04]} 38. Nxf4 {[%emt 0:00:14]} Bxb3 {[%emt 0:00:31]} 39. Rc6+ {[%emt 0:00:40]} Ke5 {[%emt 0:01:02]} 40. Ke3 {[%emt 0:00:00]} Rd6 {[%emt 0:01:07]} 41. Rc7 {[%emt 0:02:44]} Rh6 {[%emt 0:04:30]} 42. h5 {[%emt 0:04:30]} (42. Rd7 $17 {was the only defense.}) 42... Bxa4 {[%emt 0:03:30]} 43. Re7+ {[%emt 0:00:00]} Kd6 {[%emt 0:00:30]} 44. Rf7 {[%emt 0:00:00]} Bd7 {[%emt 0:02:30]} 45. Kd4 {[%emt 0:01:30]} Bc6 {[%emt 0:02:45]} 46. Rxf5 {[%emt 0:04:30]} Bxf3 {[%emt 0:02:00]} 47. Ke3 {[%emt 0:06:00]} Bc6 {[%emt 0:01:03]} 48. Kd4 {[%emt 0:00:30]} a4 {[%emt 0:08:48]} 49. Nd3 {[%emt 0:02:30]} b5 {[%emt 0:01:06]} 50. Nf4 {[%emt 0:07:31]} b4 {[%emt 0:01:04]} 51. Nd3 {[%emt 0:01:21]} b3 {[%emt 0:00:29]} 52. Ne5 {[%emt 0:01:09]} Be8 {[%emt 0:00:26]} 53. Nc4+ {[%emt 0:00:54]} Ke7 {[%emt 0:00:09]} 54. Re5+ {[%emt 0:00:29]} Kf8 $19 {[%emt 0:00:24]} 55. Rf5+ {[%emt 0:01:17]} Kg7 {[%emt 0:00:15]} 56. Rg5+ {[%emt 0:00:34]} Kf6 {[%emt 0:00:14]} 57. Ra5 {[%emt 0:03:03]} Rxh5 {[%emt 0:00:30]} 58. Ra6+ {[%emt 0:00:30]} Kg7 {[%emt 0:00:30]} 59. Ra7+ {[%emt 0:00:30]} Kf8 {[%emt 0:02:52]} 60. Ra8 {[%emt 0:01:38]} Rh4+ {[%emt 0:01:12]} 61. Kc3 {[%emt 0:00:05]} Rxc4+ {[%emt 0:01:03]} 62. Kxc4 {[%emt 0:00:30]} b2 {[%emt 0:00:00]} 63. Rb8 {[%emt 0:00:00]} a3 {[%emt 0:00:00]} 64. Kc3 {[%emt 0:00:34]} Kg7 {[%emt 0:00:00]} 65. Rb7+ {[%emt 0:03:09]} Kh6 {[%emt 0:00:16]} 66. Kd4 {[%emt 0:00:58]} 0-1

[Event "Turkey IS Bank Super League 2017"]
[Site "Darica-Kocaeli"]
[Date "2017.08.03"]
[Round "9"]
[White "Arda, Cagil Irmak"]
[Black "Kose, Ulya"]
[Result "1-0"]
[ECO "C49"]
[WhiteElo "2080"]
[BlackElo "1591"]
[Annotator "NA"]
[PlyCount "89"]
[EventType "team-tourn"]
[EventCountry "TUR"]
[SourceTitle "playchess.com"]
[Source "ChessBase"]
[SourceQuality "1"]
[TimeControl "40/5400+30:1800+30"]

1. e4 {[%emt 0:01:30]} e5 {[%emt 0:01:00]} 2. Nf3 {[%emt 0:00:30]} Nc6 {[%emt 0:01:30]} 3. Nc3 {[%emt 0:00:30]} Nf6 {[%emt 0:00:30]} 4. Bb5 {[%emt 0:01:30]} Bb4 {[%emt 0:01:30]} 5. O-O {[%emt 0:00:00]} O-O {[%emt 0:00:30]} 6. d3 {[%emt 0:00:00]} d6 {[%emt 0:00:30]} 7. Bg5 {[%emt 0:00:00]} Bxc3 {[%emt 0:01:30]} 8. bxc3 {[%emt 0:00:00]} Qe7 {[%emt 0:00:30]} 9. Re1 {[%emt 0:02:30]} Nd8 {[%emt 0:04:30]} 10. d4 {[%emt 0:07:30]} Ne6 {[%emt 0:04:30]} 11. Bc1 {[%emt 0:00:30] LiveBook: 290 Games} Rd8 {[%emt 0:02:30]} 12. Ba3 {[%emt 0:01:30] C49: Four Knights: 4 Bb5 Bb4} (12. Bf1 c5 13. g3 Nf8 14. Nh4 h6 15. a4 Qc7 16. a5 Bd7 17. Nf5 Ng6 18. Ne3 Ne7 19. dxe5 dxe5 20. Qf3 Qc6 21. Bd3 {½-½ (40) Ivanchuk,V (2731)-Nakamura,H (2786) Antalya 2013}) 12... c5 {[%emt 0:13:30] [%clk 1:04]} 13. g3 {[%emt 0:15:30]} Qc7 {[%emt 0:09:30]} 14. Bf1 {[%emt 0:04:30]} Bd7 $146 {[%emt 0:21:30]} ({Find the theoretical novelty and annotate with similar games:} 14... cxd4 15. cxd4 b6 16. d5 Nc5 17. Nd2 Bd7 18. Bg2 b5 19. Nb3 Na4 {0-1 (41) Lots,S-Fedosenko,P (2236) Ordzhonikidze 2004}) 15. d5 {[%emt 0:06:30]} Nf8 {[%emt 0:01:30]} 16. Bc1 {[%emt 0:00:30]} h6 {[%emt 0:03:30]} 17. Nh4 {[%emt 0:00:30]} Ng6 {[%emt 0:01:30]} 18. Nxg6 {[%emt 0:03:30]} fxg6 {[%emt 0:00:30]} 19. f4 {[%emt 0:00:30]} c4 {[%emt 0:09:30]} 20. Qe2 {[%emt 0:07:30]} Rac8 {[%emt 0:02:49]} 21. Bg2 {[%emt 0:03:30]} Rf8 {[%emt 0:01:55]} 22. fxe5 {[%emt 0:08:30]} dxe5 {[%emt 0:00:52]} 23. h3 {[%emt 0:00:30]} Nh5 {[%emt 0:03:54]} 24. Kh2 {[%emt 0:00:30]} Rf7 {[%emt 0:01:04]} 25. Ba3 {[%emt 0:00:30]} b5 $11 {[%emt 0:03:15]} 26. Rf1 {[%emt 0:01:30]} Re8 {[%emt 0:04:36]} 27. Qe3 {[%emt 0:07:30]} Qb6 {[%emt 0:01:32]} 28. Bc5 {[%emt 0:01:30]} Qb7 {[%emt 0:00:32]} 29. Rxf7 {[%emt 0:00:30]} Kxf7 {[%emt 0:00:30]} 30. Bxa7 {[%emt 0:00:30]} Kg8 {[%emt 0:00:30]} 31. Bc5 {[%emt 0:00:30]} Nf6 {[%emt 0:00:58]} 32. Rf1 {[%emt 0:03:30]} Ra8 {[%emt 0:01:16]} 33. a3 {[%emt 0:04:07]} Be8 {[%emt 0:00:55]} 34. Bd6 {[%emt 0:02:14]} Nd7 {[%emt 0:00:25]} 35. Bf3 {[%emt 0:01:33]} Qa6 {[%emt 0:01:16]} 36. Bb4 {[%emt 0:02:28]} Nf6 {[%emt 0:01:15]} 37. Qc5 {[%emt 0:00:38]} Bd7 {[%emt 0:00:23]} 38. Bg2 {[%emt 0:04:32]} Qa4 {[%emt 0:00:32]} 39. Rf2 {[%emt 0:01:03]} Qa6 {[%emt 0:00:33]} 40. Qd6 {[%emt 0:00:00]} Qb7 {[%emt 0:01:28]} 41. Qxe5 {[%emt 0:03:55]} Re8 {[%emt 0:01:30]} 42. Qd4 {[%emt 0:01:30]} Nh5 {[%emt 0:02:30]} 43. e5 {[%emt 0:00:30]} Qb8 {[%emt 0:00:30]} 44. Bd6 {[%emt 0:00:30]} Qd8 {[%emt 0:01:30]} 45. g4 {[%emt 0:01:30]} 1-0

[Event "Turkey IS Bank Super League 2017"]
[Site "Darica-Kocaeli"]
[Date "2017.08.03"]
[Round "9"]
[White "Gundogan, Cem"]
[Black "Yurtseven, Melih"]
[Result "0-1"]
[ECO "A48"]
[WhiteElo "2062"]
[BlackElo "2353"]
[Annotator "NA"]
[PlyCount "94"]
[EventType "team-tourn"]
[EventCountry "TUR"]
[SourceTitle "playchess.com"]
[Source "ChessBase"]
[SourceQuality "1"]
[TimeControl "40/5400+30:1800+30"]

1. d4 {[%emt 0:00:30]} Nf6 {[%emt 0:05:00]} 2. Nf3 {[%emt 0:00:30]} g6 {[%emt 0:00:30]} 3. b4 {[%emt 0:00:00]} e6 {[%emt 0:02:30]} 4. a3 {[%emt 0:02:00]} a5 {[%emt 0:00:30]} 5. b5 {[%emt 0:00:30]} Bg7 {[%emt 0:00:00]} 6. Bb2 {[%emt 0:00:30]} O-O {[%emt 0:00:00]} 7. c4 {[%emt 0:00:30]} d6 {[%emt 0:00:00]} 8. e3 {[%emt 0:02:30]} Nbd7 {[%emt 0:01:00]} 9. Nc3 {[%emt 0:00:30]} Re8 {[%emt 0:02:30]} 10. Na4 {[%emt 0:09:30]} Qe7 {[%emt 0:02:30]} 11. Qc2 {[%emt 0:03:30]} e5 {[%emt 0:06:30] [%clk 1:15]} 12. c5 {[%emt 0:30:30]} e4 {[%emt 0:06:30]} 13. cxd6 {[%emt 0:01:30]} cxd6 {[%emt 0:00:30]} 14. Nd2 {[%emt 0:00:30]} Nd5 {[%emt 0:02:30]} 15. Bc4 {[%emt 0:09:30]} N5b6 {[%emt 0:02:30]} 16. Nc3 {[%emt 0:04:30]} Nf6 {[%emt 0:00:30]} 17. a4 {[%emt 0:05:30]} h5 {[%emt 0:04:30]} 18. Ba3 {[%emt 0:01:30]} h4 {[%emt 0:03:30]} 19. h3 $1 {[%emt 0:00:30]} Bf5 {[%emt 0:00:00]} 20. Bb3 {[%emt 0:13:24]} Rac8 {[%emt 0:04:00]} 21. Qb2 {[%emt 0:00:15]} Qd7 {[%emt 0:01:30]} 22. Ne2 {[%emt 0:01:32]} g5 {[%emt 0:04:30]} 23. Qa2 {[%emt 0:01:25]} Rc7 {[%emt 0:10:30]} 24. g4 {[%emt 0:03:01]} Bg6 {[%emt 0:02:30]} 25. Rc1 {[%emt 0:02:08]} Rec8 {[%emt 0:03:30]} 26. Nc4 {[%emt 0:01:08]} Nxc4 {[%emt 0:02:30]} 27. Rxc4 {[%emt 0:00:41]} Rxc4 {[%emt 0:11:30]} 28. Bxc4 {[%emt 0:00:30]} Bf8 {[%emt 0:00:30]} 29. Bb3 {[%emt 0:00:36]} Kh7 {[%emt 0:05:18]} 30. Qd2 {[%emt 0:02:24]} b6 {[%emt 0:00:42]} 31. d5 {[%emt 0:01:59]} Qe8 {[%emt 0:04:11]} 32. Nd4 {[%emt 0:01:48]} Nd7 {[%emt 0:00:24]} 33. Nc6 {[%emt 0:00:30]} f5 {[%emt 0:03:55]} 34. Rg1 {[%emt 0:00:38]} Be7 {[%emt 0:02:30]} 35. gxf5 {[%emt 0:00:47]} Bxf5 {[%emt 0:00:02]} 36. Qe2 {[%emt 0:00:10]} Kh6 {[%emt 0:02:15]} 37. Nd4 {[%emt 0:00:33]} Qg6 {[%emt 0:01:21]} 38. Bd1 {[%emt 0:00:10]} Bxh3 {[%emt 0:04:31]} 39. Rh1 {[%emt 0:00:08]} g4 {[%emt 0:00:00]} 40. Nc6 {[%emt 0:00:00]} Bf6 {[%emt 0:00:51]} 41. Bb2 {[%emt 0:02:13]} Rf8 {[%emt 0:09:30]} 42. Bxf6 {[%emt 0:03:30]} Rxf6 {[%emt 0:05:03]} 43. Ne7 $19 {[%emt 0:02:30]} Qf7 {[%emt 0:04:29]} 44. Rxh3 {[%emt 0:01:30]} gxh3 {[%emt 0:00:30]} 45. Ng8+ {[%emt 0:00:00]} Qxg8 {[%emt 0:00:13]} 46. Qh5+ {[%emt 0:00:00]} Kg7 {[%emt 0:00:21]} 47. Qg4+ {[%emt 0:00:30]} Kh8 {[%emt 0:00:49]} 0-1

[Event "Turkey IS Bank Super League 2017"]
[Site "Darica-Kocaeli"]
[Date "2017.08.03"]
[Round "9"]
[White "Kamer, Kayra"]
[Black "Kesgin, Halit Kaan"]
[Result "1-0"]
[ECO "C07"]
[WhiteElo "2062"]
[BlackElo "2207"]
[Annotator "NA"]
[PlyCount "93"]
[EventType "team-tourn"]
[EventCountry "TUR"]
[SourceTitle "playchess.com"]
[Source "ChessBase"]
[SourceQuality "1"]
[TimeControl "40/5400+30:1800+30"]

{[%evp 8,91,10,32767,32767,32767,32767,32767,32767,32767,32767,32767,32767,32767,32767,32767,32767,32767,32767,32767,32767,32767,32767,32767,-71,32767,-82,-80,-66,-79,-61,-69,32767,-58,-72,-87,-95,-94,-95,-107,-91,32767,32767,32767,-95,-138,-108,-122,32767,32767,32767,32767,-99,-169,-170,-174,-191,-185,-114,-186,-127,32767,32767,-120,32767,32767,32767,32767,0,32767,32767,-63,32767,32767,32767,32767,32767,32767,204,32767,299,376,352,492,465,750]} 1. e4 {[%emt 0:00:30]} e6 {[%emt 0:01:00]} 2. d4 {[%emt 0:00:30]} d5 {[%emt 0:00:30]} 3. Nd2 {[%emt 0:00:00]} c5 {[%emt 0:00:30]} 4. Ngf3 {[%emt 0:01:00]} cxd4 {[%emt 0:00:00]} 5. Nxd4 {[%emt 0:00:00]} Nc6 {[%emt 0:00:00]} 6. Bb5 {[%emt 0:00:00]} Bd7 {[%emt 0:01:30]} 7. Nxc6 {[%emt 0:00:30]} Bxc6 {[%emt 0:00:00]} 8. Bxc6+ {[%emt 0:00:30]} bxc6 {[%emt 0:00:00]} 9. c4 {[%emt 0:00:00]} Nf6 {[%emt 0:01:30]} 10. Qa4 {[%emt 0:00:00] C07: Französische Verteidigung (Tarrasch-Variante)} Qd7 {[%emt 0:00:00]} 11. e5 {[%emt 0:02:30]} Ng8 {[%emt 0:00:00]} (11... Ng4 12. Nf3 f6 13. exf6 gxf6 14. cxd5 exd5 15. O-O Bd6 16. Bf4 c5 17. Rfe1+ Be7 18. Rxe7+ Kxe7 {1-0 (46) Anand,V (2803)-Bartel,M (2622) Berlin 2015}) 12. O-O {[%emt 0:00:30]} Ne7 {[%emt 0:00:30]} 13. cxd5 $146 {[%emt 0:00:30]} ({Vorgänger:} 13. Nf3 Nf5 14. Bd2 Bc5 15. Rac1 Bb6 16. Rfe1 Ne7 17. c5 Bd8 {½-½ (30) Kaczur,F (2431)-Kosic,D (2486) Budapest 2017}) 13... cxd5 {[%emt 0:01:30]} 14. Qxd7+ {[%emt 0:00:30]} Kxd7 {[%emt 0:00:30]} 15. Nb3 {[%emt 0:00:30]} Nc6 {[%emt 0:01:30]} 16. f4 {[%emt 0:00:30]} a5 {[%emt 0:07:30]} 17. Be3 {[%emt 0:00:30]} a4 {[%emt 0:01:30]} 18. Nc5+ {[%emt 0:00:30]} Bxc5 {[%emt 0:00:30]} 19. Bxc5 {[%emt 0:00:30]} Rhb8 {[%emt 0:00:30]} 20. Rf2 {[%emt 0:00:30]} Rb5 {[%emt 0:03:30]} 21. Bd6 {[%emt 0:01:30]} Na5 {[%emt 0:00:30]} 22. b3 {[%emt 0:04:30]} Nb7 {[%emt 0:00:30]} ({Much worse is} 22... axb3 23. axb3 Rc8 24. Rf3 $11) 23. bxa4 {[%emt 0:00:00]} Rxa4 {[%emt 0:00:00]} 24. Bf8 {[%emt 0:00:00]} g6 {[%emt 0:01:00]} 25. Rc1 {[%emt 0:04:30]} Na5 {[%emt 0:01:30]} 26. g4 {[%emt 0:01:30]} Nc4 {[%emt 0:07:30] [%clk 1:09]} 27. a3 {[%emt 0:01:30]} Rb8 {[%emt 0:15:30]} 28. Bb4 {[%emt 0:04:30]} Rba8 {[%emt 0:02:30]} 29. Rfc2 {[%emt 0:02:30]} R8a7 {[%emt 0:07:30]} 30. Rxc4 {[%emt 0:08:30]} (30. g5 $17) 30... dxc4 {[%emt 0:00:30]} 31. Rxc4 {[%emt 0:00:00]} Rc7 {[%emt 0:00:30]} 32. Rd4+ {[%emt 0:00:00]} Kc6 {[%emt 0:02:30]} 33. Kf2 {[%emt 0:03:30]} Ra8 {[%emt 0:05:30]} 34. Ke3 {[%emt 0:01:30]} Kb5 {[%emt 0:01:30]} 35. f5 {[%emt 0:00:00]} Rc4 {[%emt 0:04:30]} 36. Rd7 {[%emt 0:00:00]} Rxg4 {[%emt 0:00:00]} 37. f6 {[%emt 0:00:30]} Rg5 {[%emt 0:02:00]} 38. Bd6 {[%emt 0:01:30]} Rc8 {[%emt 0:08:30]} 39. Rxf7 {[%emt 0:00:30]} (39. Rb7+ $11 Ka6 40. Rxf7) 39... Rc3+ {[%emt 0:00:00]} 40. Kd4 {[%emt 0:00:00]} Rh3 {[%emt 0:01:00]} 41. a4+ {[%emt 0:06:00]} Kb6 {[%emt 0:01:30]} 42. a5+ {[%emt 0:00:30] [#]} Ka6 $2 {[%emt 0:02:30]} (42... Kb5 $1 $17 {[%cal Rg5g4] stays on course.} 43. Rb7+ Ka6 44. Rb6+ Kxa5) 43. Bb8 {[%emt 0:01:30]} Kxa5 {[%emt 0:05:30] [#]} 44. Kc5 $1 {[%emt 0:00:30]} Rc3+ {[%emt 0:00:30]} 45. Kd6 {[%emt 0:00:00]} Rd3+ {[%emt 0:02:30]} 46. Kxe6 $18 {[%emt 0:00:00]} Kb6 {[%emt 0:00:00]} 47. Rxh7 {[%emt 0:00:30]} 1-0

[Event "Turkey IS Bank Super League 2017"]
[Site "Darica-Kocaeli"]
[Date "2017.08.03"]
[Round "9"]
[White "Tarlabasi, Emirhan"]
[Black "Ozen, Deniz"]
[Result "0-1"]
[ECO "D10"]
[WhiteElo "2046"]
[BlackElo "2351"]
[Annotator "NA"]
[PlyCount "66"]
[EventType "team-tourn"]
[EventCountry "TUR"]
[SourceTitle "playchess.com"]
[Source "ChessBase"]
[SourceQuality "1"]
[TimeControl "40/5400+30:1800+30"]

1. d4 {[%emt 0:00:30]} d5 {[%emt 0:01:00]} 2. c4 {[%emt 0:00:30]} c6 {[%emt 0:00:30]} 3. e3 {[%emt 0:00:00]} Nf6 {[%emt 0:00:30]} 4. Nc3 {[%emt 0:00:00]} Bf5 {[%emt 0:00:00]} 5. cxd5 {[%emt 0:00:30]} cxd5 {[%emt 0:00:00]} 6. Qb3 {[%emt 0:00:00]} Nc6 {[%emt 0:01:30] D10: Slav Defence: 3 cxd5 (without early Nf3) and 3 Nc3} 7. Qxb7 {[%emt 0:03:00]} Bd7 {[%emt 0:00:30]} 8. Qb3 {[%emt 0:00:30]} Rb8 {[%emt 0:00:30]} 9. Qd1 {[%emt 0:00:30]} e5 {[%emt 0:00:00]} 10. Nf3 {[%emt 0:06:30]} Bd6 {[%emt 0:12:00]} 11. dxe5 {[%emt 0:08:30] LiveBook: 37 Games} Nxe5 {[%emt 0:01:30]} 12. Be2 {[%emt 0:06:30]} O-O {[%emt 0:05:30]} 13. O-O {[%emt 0:01:30] [%clk 1:08]} Qc7 {[%emt 0:11:30]} 14. h3 {[%emt 0:07:30] [#]} Qa5 $146 {[%emt 0:10:30]} ({Predecessor:} 14... Nxf3+ 15. Bxf3 {½-½ (30) Bacrot,E (2697)-Mamedov,R (2657) Berlin 2015}) 15. Nd4 {[%emt 0:06:30]} Rfd8 {[%emt 0:09:30]} 16. f4 {[%emt 0:17:30]} ({White should play} 16. Nb3 $16 Qc7 17. f4 (17. Nxd5 Nxd5 18. Qxd5 Bb4 $14)) 16... Nc4 {[%emt 0:03:30]} 17. Bxc4 {[%emt 0:22:22]} dxc4 {[%emt 0:00:30]} 18. Qe2 {[%emt 0:06:33]} Qc7 {[%emt 0:04:30]} 19. Rd1 {[%emt 0:05:46]} h6 {[%emt 0:02:30]} 20. Qf3 {[%emt 0:02:02]} Bc5 {[%emt 0:00:30]} 21. Kh1 {[%emt 0:02:52]} Bc8 {[%emt 0:08:30]} 22. Ndb5 {[%emt 0:00:49]} Qe7 {[%emt 0:03:30]} 23. Rxd8+ {[%emt 0:01:04]} Qxd8 {[%emt 0:00:30]} 24. e4 {[%emt 0:00:30]} a6 {[%emt 0:00:30]} 25. Na3 {[%emt 0:00:30]} Qd4 {[%emt 0:00:30]} 26. Qd1 {[%emt 0:00:00]} Qf2 {[%emt 0:03:30]} 27. Nxc4 {[%emt 0:00:28] [#]} Bg4 $19 {[%emt 0:02:17]} (27... Bxh3 $142 $1 {[%mdl 512]} 28. gxh3 {[#]} Nh5 $1 {[%mdl 512]}) 28. Be3 {[%emt 0:00:31]} Bxe3 {[%emt 0:00:21]} 29. Qf1 {[%emt 0:00:25]} Be6 {[%emt 0:00:41]} 30. Ne5 {[%emt 0:00:36]} Qxf1+ {[%emt 0:01:03]} 31. Rxf1 {[%emt 0:00:05]} Rxb2 {[%emt 0:00:19]} 32. Nd1 {[%emt 0:00:54]} Re2 {[%emt 0:00:06]} 33. Nf3 {[%emt 0:00:49]} Nxe4 {[%emt 0:00:09]} 0-1

[Event "Turkey IS Bank Super League 2017"]
[Site "Darica-Kocaeli"]
[Date "2017.08.03"]
[Round "9"]
[White "Unat, Can Haktan"]
[Black "Dolgun, Can"]
[Result "1-0"]
[ECO "E60"]
[WhiteElo "2006"]
[BlackElo "2104"]
[Annotator "NA"]
[PlyCount "99"]
[EventType "team-tourn"]
[EventCountry "TUR"]
[SourceTitle "playchess.com"]
[Source "ChessBase"]
[SourceQuality "1"]
[TimeControl "40/5400+30:1800+30"]

1. Nf3 {[%emt 0:00:30]} Nf6 {[%emt 0:01:00]} 2. g3 {[%emt 0:00:30]} g6 {[%emt 0:00:30]} 3. Bg2 {[%emt 0:00:00]} Bg7 {[%emt 0:00:00]} 4. b3 {[%emt 0:00:00]} O-O {[%emt 0:00:00]} 5. Bb2 {[%emt 0:00:30]} d6 {[%emt 0:00:30]} 6. d4 {[%emt 0:00:30]} e5 {[%emt 0:00:00]} 7. dxe5 {[%emt 0:06:30]} Nfd7 {[%emt 0:00:00]} 8. O-O {[%emt 0:02:30]} Nc6 {[%emt 0:01:30]} 9. c4 {[%emt 0:01:30]} Ndxe5 {[%emt 0:02:30]} 10. Nxe5 {[%emt 0:00:30] LiveBook: 19 Games} Nxe5 {[%emt 0:00:30]} 11. Nc3 {[%emt 0:00:30]} Be6 {[%emt 0:01:30] E60: King's Indian: Unusual lines and Fianchetto Variation without Nc3} (11... Re8 12. Qd2 Rb8 13. Rad1 Bg4 14. h3 Be6 15. Kh2 a6 {½-½ (15) Varga,Z (2476)-Akshayraj,K (2483) Budapest 2012}) 12. Qd2 {[%emt 0:01:30]} ({Don't play} 12. Bxb7 Nxc4 13. bxc4 Rb8 $11) 12... c6 {[%emt 0:09:30]} 13. Ne4 {[%emt 0:08:30]} d5 $146 {[%emt 0:09:30]} ({Predecessor:} 13... Qb6 14. Ba3 Rfd8 15. Bxd6 Bxc4 16. Rad1 Ba6 17. Qc2 f5 18. Ng5 Re8 19. Rfe1 {1-0 (38) Piotr,M-Smolovic,M Hallsberg 1991}) 14. Nc5 {[%emt 0:05:30] [%clk 1:08]} dxc4 {[%emt 0:08:30]} 15. Qxd8 {[%emt 0:00:00]} Rfxd8 {[%emt 0:00:30]} 16. Rad1 {[%emt 0:32:00]} cxb3 {[%emt 0:13:30]} 17. axb3 {[%emt 0:00:30]} Nd7 {[%emt 0:03:30]} 18. Nxe6 {[%emt 0:14:30]} fxe6 {[%emt 0:00:30]} 19. Bh3 {[%emt 0:02:30]} Nf8 {[%emt 0:03:30]} 20. Ba3 {[%emt 0:00:30]} Kf7 {[%emt 0:00:30]} 21. f4 {[%emt 0:01:30]} h6 {[%emt 0:10:30]} 22. e4 {[%emt 0:00:30]} Nh7 {[%emt 0:02:30]} 23. e5 {[%emt 0:04:32]} Bf8 {[%emt 0:01:30]} 24. Bb2 $15 {[%emt 0:03:31]} Bc5+ {[%emt 0:00:30]} 25. Kh1 {[%emt 0:00:24]} Ke7 {[%emt 0:02:30]} 26. Bc3 {[%emt 0:00:08]} a6 {[%emt 0:04:30]} 27. g4 {[%emt 0:05:59]} Nf8 {[%emt 0:04:45]} 28. f5 {[%emt 0:01:32]} g5 {[%emt 0:03:38]} 29. Bg2 {[%emt 0:00:38]} Rxd1 {[%emt 0:03:11]} 30. Rxd1 {[%emt 0:00:01]} Rd8 {[%emt 0:00:00]} 31. Rxd8 {[%emt 0:01:10]} Kxd8 {[%emt 0:00:09]} 32. h4 {[%emt 0:00:00]} Be3 {[%emt 0:01:12]} 33. Bb4 {[%emt 0:00:47]} Ke8 {[%emt 0:09:10]} 34. Be4 {[%emt 0:01:15]} c5 {[%emt 0:03:15]} 35. Ba5 {[%emt 0:00:31]} b5 {[%emt 0:01:56]} 36. hxg5 {[%emt 0:00:09]} hxg5 {[%emt 0:00:00]} 37. Bb7 {[%emt 0:00:00]} Ke7 {[%emt 0:00:54]} 38. Bxa6 {[%emt 0:01:02]} b4 {[%emt 0:00:07]} 39. Bc7 {[%emt 0:00:23]} Bd4 {[%emt 0:00:50]} 40. Bd6+ {[%emt 0:00:00]} Kf7 {[%emt 0:31:29]} 41. Bc4 {[%emt 0:01:28]} Ke8 {[%emt 0:00:00]} 42. fxe6 {[%emt 0:00:00]} Ng6 {[%emt 0:00:00]} 43. Bd3 {[%emt 0:00:00]} Ne7 {[%emt 0:00:00]} 44. Bb5+ {[%emt 0:01:30]} Kd8 {[%emt 0:00:00]} 45. Kg2 {[%emt 0:00:30]} Ng6 {[%emt 0:00:00]} 46. Kf3 {[%emt 0:01:30]} c4 {[%emt 0:00:00]} 47. Ke4 {[%emt 0:04:30]} c3 {[%emt 0:00:00]} 48. Bd3 {[%emt 0:00:30]} Bb6 {[%emt 0:00:00]} 49. Bxb4 {[%emt 0:00:30]} Nf4 {[%emt 0:00:00]} 50. e7+ {[%emt 0:00:30]} 1-0